bitfinex-derivatives/quotes_SOLF0:USTF0_20250319
["timestamp","ask_amount","ask_price","bid_price","bid_amount"]
[1742420937887,7.498,133.36,133.34,0.05163048]
[1742420938186,7.4981,133.35,133.34,0.05163048]
[1742420939288,13.47400485,133.36,133.31,7.5002]
[1742420940490,29.307,133.37,133.32,0.0467602]
[1742420940491,0.05171107,133.35,133.32,0.0467602]
[1742420940689,0.05171107,133.35,133.33,13.47400485]
[1742420940890,19.90989945,133.42,133.33,40.69400485]
[1742420941086,5.62401195,133.42,133.39,7.4956]
[1742420941281,247.46,133.44,133.39,27.22]
[1742420941486,9.62541195,133.45,133.4,13.47400485]
[1742420941687,4.0014,133.45,133.42,7.4939]
[1742420942089,4.05494018,133.45,133.42,0.05091199]
[1742420942295,0.05354018,133.45,133.43,7.4935]
[1742420942695,0.05354018,133.45,133.42,34.76481199]
[1742420944199,0.05354018,133.45,133.42,27.27091199]
[1742420944593,0.05354018,133.45,133.42,48.23891684]
[1742420949704,0.05354018,133.45,133.43,1.9875]
[1742420950701,0.05354018,133.45,133.44,13.47400485]
[1742420953309,0.05354018,133.45,133.43,9.481]
[1742420953503,0.05354018,133.45,133.44,13.47400485]
[1742420955510,13.47400485,133.53,133.44,13.47400485]
[1742420955718,13.47400485,133.53,133.47,13.47400485]
[1742420955904,7.486,133.57,133.53,7.4876]
[1742420956107,4.0649,133.58,133.55,13.47400485]
[1742420956306,33.08215738,133.6,133.55,13.47400485]
[1742420956507,30.95435738,133.6,133.57,13.47400485]
[1742420956707,0.05503366,133.59,133.57,40.91400485]
[1742420957114,0.05503366,133.59,133.58,7.4852]
[1742420958014,0.05503366,133.59,133.57,48.39960485]
[1742420960915,0.05503366,133.59,133.58,7.4852]
[1742420962218,254.8015,133.65,133.59,7.4845]
[1742420962414,254.8015,133.65,133.6,13.47400485]
[1742420962619,254.8015,133.65,133.6,40.99400485]
[1742420963520,0.0534163,133.64,133.62,13.47400485]
[1742420963720,15.43920485,133.67,133.63,27.58]
[1742420964020,0.05204226,133.64,133.63,27.58]
[1742420965319,7.4793,133.69,133.64,7.4814]
[1742420965515,7.4793,133.69,133.66,13.47400485]
[1742420965714,7.4793,133.69,133.67,27.64]
[1742420966112,7.4796,133.68,133.67,27.64]
[1742420968426,7.4802,133.67,133.66,0.05480446]
[1742420970328,7.4798,133.68,133.66,0.05480446]
[1742420970627,0.05757424,133.69,133.66,0.05480446]
[1742420971125,27.6,133.77,133.68,21.15895897]
[1742420971331,2.0789,133.76,133.7,21.15895897]
[1742420971530,7.4757,133.75,133.71,27.58]
[1742420972331,2.0789,133.76,133.71,27.58]
[1742420972332,0.05191256,133.74,133.72,0.05215441]
[1742420974429,0.05191256,133.74,133.72,7.52955441]
[1742420975935,0.05191256,133.74,133.73,7.4768]
[1742420978235,0.05191256,133.74,133.72,7.52925441]
[1742420978635,0.05191256,133.74,133.72,0.05215441]
[1742420979238,0.05191256,133.74,133.73,7.4768]
[1742420980133,0.05191256,133.74,133.72,35.10925441]
[1742420980741,0.05191256,133.74,133.72,7.52925441]
[1742420981036,0.05191256,133.74,133.72,35.12925441]
[1742420981639,0.05191256,133.74,133.73,7.4768]
[1742420982041,0.05191256,133.74,133.72,27.65215441]
[1742420982234,0.05191256,133.74,133.72,35.12915441]
[1742420982837,0.05191256,133.74,133.72,0.05215441]
[1742420984042,7.52831256,133.74,133.72,0.05215441]
[1742420985138,7.52831256,133.74,133.72,7.52945441]
[1742420985845,7.4768,133.73,133.72,0.05215441]
[1742420986135,0.05191256,133.74,133.6,76.9678]
[1742420986443,7.4793,133.69,133.66,7.4802]
[1742420987137,7.4793,133.69,133.66,7.52982988]
[1742420987343,7.53445876,133.69,133.66,7.52982988]
[1742420989241,7.53445876,133.69,133.67,7.48]
[1742420989742,7.53445876,133.69,133.66,7.53002988]
[1742420991244,7.53445876,133.69,133.67,7.4801]
[1742420992043,7.53445876,133.69,133.66,7.53012988]
[1742420992945,7.4797,133.68,133.66,7.53012988]
[1742420993341,0.05515876,133.69,133.66,7.53012988]
[1742420993542,7.53465876,133.69,133.66,7.53012988]
[1742420994749,7.4797,133.68,133.66,7.53012988]
[1742420996737,7.4797,133.68,133.66,0.04962988]
[1742420997148,7.4797,133.68,133.66,13.58542309]
[1742420997346,7.4797,133.68,133.66,21.06602309]
[1742420997546,7.4797,133.68,133.66,13.58542309]
[1742420999046,7.4797,133.68,133.66,21.06592309]
[1742421000750,7.53445876,133.69,133.66,21.06592309]
[1742421000951,0.05515876,133.69,133.67,7.4801]
[1742421001151,0.05515876,133.69,133.66,13.58542309]
[1742421001542,0.05515876,133.69,133.66,21.06592309]
[1742421002155,7.53445876,133.69,133.67,7.4801]
[1742421002454,0.05515876,133.69,133.66,0.04962988]
[1742421002753,7.4797,133.68,133.66,7.53012988]
[1742421003357,0.05515876,133.69,133.66,7.53012988]
[1742421003752,0.05515876,133.69,133.67,7.4801]
[1742421003952,7.53465876,133.69,133.66,0.04962988]
[1742421004458,7.4799,133.68,133.66,7.53002988]
[1742421006352,7.4799,133.68,133.66,0.04962988]
[1742421006958,7.4799,133.68,133.66,7.53012988]
[1742421008159,7.53445876,133.69,133.66,7.53012988]
[1742421008760,7.4802,133.67,133.66,0.04962988]
[1742421010256,1.969,133.68,133.64,13.53579321]
[1742421010456,1.969,133.68,133.63,7.4822]
[1742421010961,7.4814,133.65,133.63,7.4822]
[1742421011356,7.4814,133.65,133.63,7.53601927]
[1742421011561,7.53517182,133.65,133.63,7.53601927]
[1742421011955,7.53517182,133.65,133.63,0.05381927]
[1742421012264,7.4818,133.64,133.63,0.05381927]
[1742421014659,7.4828,133.63,133.6,48.45959321]
[1742421015664,7.4828,133.63,133.6,48.51142966]
[1742421015866,0.05377182,133.65,133.6,13.58762966]
[1742421016868,7.4832,133.62,133.6,21.07152966]
[1742421018668,7.4832,133.62,133.6,0.05183645]
[1742421020468,7.4832,133.62,133.6,7.53593645]
[1742421021469,7.4832,133.62,133.6,0.05183645]
[1742421021672,7.4835,133.61,133.6,0.05183645]
[1742421030177,13.59067432,133.62,133.6,0.05183645]
[1742421030367,0.05488111,133.62,133.6,0.05183645]
[1742421030762,0.05488111,133.62,133.61,21.01929321]
[1742421031364,619.3604,133.67,133.65,7.4813]
[1742421032062,254.3604,133.67,133.65,7.4813]
[1742421032469,254.41463974,133.67,133.65,7.53748402]
[1742421033066,7.4807,133.66,133.65,0.05618402]
[1742421033776,254.41463974,133.67,133.65,0.05618402]
[1742421035181,246.93423974,133.67,133.65,7.53728402]
[1742421037070,7.4807,133.66,133.65,0.05618402]
[1742421071809,0.05423974,133.67,133.65,7.53718402]
[1742421072716,7.53443974,133.67,133.65,7.53718402]
[1742421074011,7.53443974,133.67,133.65,0.05618402]
[1742421075717,0.05423974,133.67,133.65,7.53738402]
[1742421075917,0.05423974,133.67,133.65,0.05618402]
[1742421077514,0.05423974,133.67,133.66,7.4807]
[1742421079921,0.05423974,133.67,133.65,7.53718402]
[1742421081816,0.05423974,133.67,133.66,7.4807]
[1742421085023,0.05423974,133.67,133.65,4.15768402]
[1742421089128,7.53443974,133.67,133.65,4.15768402]
[1742421090030,7.4807,133.66,133.65,0.05618402]
[1742421093835,13.59003295,133.67,133.58,23.95891016]
[1742421094135,13.53579321,133.63,133.58,10.42311695]
[1742421094335,40.69579321,133.63,133.58,10.42311695]
[1742421094538,7.4845,133.6,133.58,10.42311695]
[1742421094935,7.4845,133.6,133.57,27.16]
[1742421095136,7.53691845,133.6,133.58,0.05103078]
[1742421096039,7.4846,133.59,133.58,0.05103078]
[1742421100345,7.4864,133.56,133.54,13.53579321]
[1742421101145,7.4869,133.55,133.54,13.53579321]
[1742421101444,13.53579321,133.57,133.52,40.71579321]
[1742421101637,0.05437506,133.56,133.53,0.05478503]
[1742421102348,7.4869,133.55,133.53,0.05478503]
[1742421105047,13.53579321,133.55,133.53,0.05478503]
[1742421105445,7.4874,133.54,133.53,0.05478503]
[1742421106341,34.6674,133.54,133.53,0.05478503]
[1742421107043,7.4894,133.51,133.48,13.53579321]
[1742421107245,40.71579321,133.51,133.42,41.69246781]
[1742421107551,40.71579321,133.51,133.44,7.4928]
[1742421107947,13.53579321,133.49,133.43,40.71579321]
[1742421108144,7.4912,133.48,133.46,0.04881206]
[1742421109046,13.58816498,133.49,133.46,0.04881206]
[1742421109351,0.05237177,133.49,133.46,0.04881206]
[1742421114158,0.05237177,133.49,133.46,7.54061206]
[1742421115457,0.05237177,133.49,133.46,0.04881206]
[1742421117261,0.05237177,133.49,133.47,7.4909]
[1742421117560,0.05237177,133.49,133.46,0.04881206]
[1742421117959,0.05237177,133.49,133.47,7.4914]
[1742421118662,0.05237177,133.49,133.48,7.4908]
[1742421120957,2.0402,133.54,133.47,40.73579321]
[1742421121162,2.0402,133.54,133.53,7.488]
[1742421122960,0.05124907,133.55,133.54,7.4874]
[1742421139979,0.05124907,133.55,133.52,0.04765266]
[1742421140280,13.53579321,133.54,133.49,27.18]
[1742421140480,13.53579321,133.52,133.51,7.4891]
[1742421141075,13.53579321,133.52,133.47,40.71579321]
[1742421141276,13.53579321,133.5,133.45,40.71579321]
[1742421141478,13.53579321,133.5,133.48,0.05262862]
[1742421141880,13.53579321,133.5,133.48,7.54332862]
[1742421142380,40.71579321,133.5,133.48,7.54332862]
[1742421143384,48.20559321,133.5,133.48,7.54332862]
[1742421143584,40.71579321,133.5,133.47,7.4911]
[1742421143784,42.82359321,133.5,133.47,7.4911]
[1742421143982,13.53579321,133.48,133.43,13.53579321]
[1742421144179,13.53579321,133.46,133.41,95.21539316]
[1742421144379,13.53579321,133.46,133.41,104.59398637]
[1742421144579,13.53579321,133.46,133.41,13.53579321]
[1742421144781,0.05576776,133.45,133.4,27.18]
[1742421145084,7.54856776,133.45,133.42,7.4939]
[1742421145288,34.72856776,133.45,133.42,7.4939]
[1742421146382,27.23576776,133.45,133.41,7.4945]
[1742421147388,34.72846776,133.45,133.42,7.4941]
[1742421147680,27.23576776,133.45,133.42,7.4941]
[1742421148585,34.72836776,133.45,133.39,40.71579321]
[1742421148782,27.23576776,133.45,133.39,13.53579321]
[1742421149182,27.23576776,133.45,133.41,13.53579321]
[1742421149684,0.05576776,133.45,133.44,7.4931]
[1742421150181,27.18,133.5,133.49,7.4902]
[1742421150387,13.53579321,133.52,133.46,13.53579321]
[1742421150388,40.71579321,133.52,133.46,13.53579321]
[1742421150778,40.71579321,133.52,133.5,7.4896]
[1742421151289,40.77200846,133.52,133.5,7.53832067]
[1742421152090,40.77200846,133.52,133.5,0.04872067]
[1742421154090,40.77200846,133.52,133.5,7.53842067]
[1742421155184,48.26060846,133.52,133.5,7.53842067]
[1742421155594,48.26060846,133.52,133.5,0.04872067]
[1742421158391,7.4891,133.51,133.5,0.04872067]
[1742421158598,13.53579321,133.48,133.44,40.71579321]
[1742421158897,13.53579321,133.48,133.46,7.4915]
[1742421159092,13.53579321,133.48,133.44,40.71579321]
[1742421159599,0.04912518,133.47,133.46,7.4915]
[1742421190410,2.518e-05,133.47,133.46,21.02729321]
[1742421192015,13.53579321,133.54,133.53,7.488]
[1742421192216,13.53579321,133.54,133.49,40.71579321]
[1742421192414,13.53579321,133.54,133.5,27.18]
[1742421192614,13.53579321,133.54,133.52,7.4883]
[1742421192814,21.02329321,133.54,133.52,7.4883]
[1742421193012,13.53579321,133.54,133.52,7.4883]
[1742421193212,13.5877238,133.54,133.52,7.5384199]
[1742421194818,21.0752238,133.54,133.52,7.5384199]
[1742421196520,13.5877238,133.54,133.53,7.488]
[1742421197818,13.5877238,133.54,133.52,7.5385199]
[1742421199215,21.0757238,133.54,133.52,0.0501199]
[1742421200314,13.5877238,133.54,133.52,7.5384199]
[1742421200521,13.5877238,133.54,133.52,0.0501199]
[1742421200716,0.05193059,133.54,133.52,0.0501199]
[1742421201518,0.05193059,133.54,133.53,7.488]
[1742421207321,0.05193059,133.54,133.52,7.5384199]
[1742421208122,13.5877238,133.54,133.52,0.0501199]
[1742421208519,13.5877238,133.54,133.44,13.53579321]
[1742421208726,13.53579321,133.5,133.44,40.69579321]
[1742421209119,7.4911,133.48,133.44,40.69579321]
[1742421209324,13.53579321,133.48,133.44,27.16]
[1742421209715,13.53579321,133.5,133.47,7.4909]
[1742421210125,13.58459324,133.5,133.47,7.4909]
[1742421210326,13.58459324,133.5,133.48,7.4907]
[1742421213622,13.58459324,133.5,133.49,7.4902]
[1742421214920,0.04880003,133.5,133.49,7.4902]
[1742421221538,0.04880003,133.5,133.49,34.6502]
[1742421231042,3e-08,133.5,133.49,34.6502]
[1742421235952,3e-08,133.5,133.49,48.18599321]
[1742421237742,260.71579321,133.58,133.56,7.4863]
[1742421237942,13.53579321,133.58,133.56,7.4863]
[1742421238351,21.02119321,133.58,133.56,7.4863]
[1742421239056,21.07164372,133.58,133.56,7.53706518]
[1742421239457,21.07164372,133.58,133.56,0.05076518]
[1742421240567,7.4858,133.57,133.56,0.05076518]
[1742421262276,0.05045051,133.58,133.57,7.4858]
[1742421262473,13.53579321,133.62,133.57,27.14]
[1742421262675,13.53579321,133.62,133.61,7.4835]
[1742421263174,13.53579321,133.64,133.62,7.4826]
[1742421263674,13.59250792,133.64,133.62,7.53593577]
[1742421265770,13.59250792,133.64,133.63,7.4824]
[1742421268381,13.59250792,133.64,133.62,7.53603577]
[1742421268981,0.05671471,133.64,133.62,7.53603577]
[1742421269175,0.05671471,133.64,133.63,7.4824]
[1742421277490,13.59250792,133.64,133.62,0.05333577]
[1742421277688,13.59250792,133.64,133.58,27.12]
[1742421277991,7.4849,133.59,133.56,34.6059]
[1742421278191,13.53579321,133.6,133.56,27.12]
[1742421278487,21.02129321,133.58,133.55,7.4866]
[1742421278789,21.02129321,133.58,133.55,34.6066]
[1742421278982,21.07076923,133.58,133.55,34.66073783]
[1742421279184,7.4858,133.57,133.55,34.66073783]
[1742421279492,13.58526923,133.58,133.55,34.66073783]
[1742421279992,21.07076923,133.58,133.55,34.66073783]
[1742421281783,7.53497602,133.58,133.55,34.66073783]
[1742421282285,7.53497602,133.58,133.56,7.4863]
[1742421285398,7.53497602,133.58,133.55,34.66073783]
[1742421286896,7.4858,133.57,133.55,34.66073783]
[1742421287096,7.4858,133.57,133.55,27.17413783]
[1742421290797,7.4863,133.56,133.55,27.17413783]
[1742421291391,7.4863,133.56,133.55,0.05413783]
[1742421294598,21.02209321,133.56,133.55,0.05413783]
[1742421294794,7.4884,133.53,133.5,40.65579321]
[1742421294995,40.65579321,133.54,133.48,21.02639321]
[1742421295197,7.4906,133.49,133.46,13.53579321]
[1742421295702,7.4906,133.49,133.46,21.02749321]
[1742421295902,7.53888734,133.49,133.46,21.02749321]
[1742421296605,7.53888734,133.49,133.46,13.53579321]
[1742421297706,7.53888734,133.49,133.45,7.4922]
[1742421298010,0.04828734,133.49,133.46,7.4919]
[1742421298610,0.04828734,133.49,133.45,7.4922]
[1742421300210,0.04828734,133.49,133.46,7.4918]
[1742421302814,0.04828734,133.49,133.48,7.4908]
[1742421303009,0.04828734,133.49,133.44,13.53579321]
[1742421303613,0.04828734,133.49,133.47,7.4911]
[1742421305613,0.04828734,133.49,133.48,7.4908]
[1742421308317,0.04828734,133.49,133.47,7.4911]
[1742421311122,7.53858734,133.49,133.47,7.4911]
[1742421311922,34.6109,133.48,133.44,13.53579321]
[1742421312116,27.12,133.48,133.44,13.53579321]
[1742421312319,40.65579321,133.48,133.42,40.65579321]
[1742421312519,7.4918,133.47,133.44,7.4927]
[1742421312721,0.05424759,133.46,133.44,7.4927]
[1742421313923,13.5900408,133.46,133.4,13.53579321]
[1742421314122,13.5900408,133.46,133.39,44.60889321]
[1742421314321,21.02929321,133.44,133.39,42.59879321]
[1742421314823,0.05413955,133.43,133.41,7.4945]
[1742421316325,0.05413955,133.43,133.38,27.12]
[1742421316628,40.65579321,133.42,133.35,42.63069321]
[1742421317025,0.05227354,133.4,133.38,7.4959]
[1742421317625,0.05227354,133.4,133.39,7.4959]
[1742421317923,0.05227354,133.4,133.35,15.51069321]
[1742421318128,0.05227354,133.4,133.37,7.4967]
[1742421318321,7.54787354,133.4,133.37,7.4967]
[1742421320528,0.05227354,133.4,133.38,7.4963]
[1742421323135,0.05227354,133.4,133.39,7.4959]
[1742421323729,0.05227354,133.4,133.38,7.4962]
[1742421333844,7.54757354,133.4,133.38,7.4962]
[1742421335346,27.14,133.39,133.33,13.53579321]
[1742421335543,13.53579321,133.38,133.33,40.67579321]
[1742421335744,13.53579321,133.36,133.33,7.499]
[1742421336046,13.53579321,133.34,133.29,13.53579321]
[1742421336246,27.14,133.33,133.31,7.5]
[1742421336446,27.1899004,133.33,133.31,7.5]
[1742421336844,34.6895004,133.33,133.3,7.5007]
[1742421337251,27.1899004,133.33,133.27,59.21906102]
[1742421337443,7.5001,133.32,133.29,7.5011]
[1742421337754,27.1899004,133.33,133.29,7.5011]
[1742421337953,7.5007,133.31,133.28,7.5017]
[1742421338446,7.5005,133.31,133.28,7.5017]
[1742421338651,13.53579321,133.32,133.28,7.5017]
[1742421338847,27.14,133.3,133.28,7.5017]
[1742421339243,40.73251522,133.3,133.27,41.69246781]
[1742421339449,13.53579321,133.28,133.27,41.69246781]
[1742421340046,13.53579321,133.28,133.24,4.0943]
[1742421340344,27.14,133.27,133.25,7.5034]
[1742421340550,27.19276844,133.27,133.25,7.5034]
[1742421341149,27.19276844,133.27,133.26,7.5032]
[1742421345650,27.19276844,133.27,133.25,7.5035]
[1742421345851,27.14,133.26,133.25,7.5035]
[1742421346952,7.55546844,133.27,133.25,7.5035]
[1742421347155,27.16,133.26,133.25,7.5035]
[1742421350452,0.05276844,133.27,133.26,7.5032]
[1742421350646,27.21276844,133.27,133.26,7.5032]
[1742421352957,27.21276844,133.27,133.25,7.5035]
[1742421354561,0.05276844,133.27,133.25,7.5035]
[1742421354761,27.16,133.26,133.25,7.5035]
[1742421356063,40.69579321,133.26,133.19,2.0196]
[1742421356358,40.69579321,133.31,133.25,13.53579321]
[1742421356559,7.5012,133.3,133.27,7.5025]
[1742421356759,0.05271798,133.29,133.25,13.53579321]
[1742421356963,0.05271798,133.29,133.25,17.47079321]
[1742421359560,0.05271798,133.29,133.28,7.5021]
[1742421362765,247.58,133.37,133.28,7.5]
[1742421362959,13.53579321,133.4,133.34,13.53579321]
[1742421363160,13.53579321,133.4,133.36,7.4973]
[1742421363459,27.16,133.41,133.36,13.53579321]
[1742421363662,27.16,133.41,133.38,7.4963]
[1742421363870,0.05675176,133.4,133.38,7.4963]
[1742421364257,0.05675176,133.4,133.37,0.05178687]
[1742421364459,7.4964,133.38,133.37,0.05178687]
[1742421374768,28.74748092,133.38,133.37,0.05178687]
[1742421387079,21.10359153,133.38,133.37,0.05178687]
[1742421388776,7.4985,133.35,133.32,7.4995]
[1742421388976,13.60719153,133.36,133.31,15.66569153]
[1742421389281,7.4984,133.35,133.31,15.66569153]
[1742421389779,7.4984,133.35,133.32,7.4993]
[1742421389975,0.05536656,133.34,133.32,7.4993]
[1742421390181,0.05536656,133.34,133.31,42.78569153]
[1742421390578,0.05536656,133.34,133.31,15.66569153]
[1742421390780,0.05536656,133.34,133.31,42.78569153]
[1742421391181,0.05536656,133.34,133.33,7.4992]
[1742421393082,0.05536656,133.34,133.32,7.4996]
[1742421393477,0.05536656,133.34,133.32,7.4998]
[1742421394277,0.05536656,133.34,133.33,7.4992]
[1742421395982,0.05536656,133.34,133.32,7.4995]
[1742421398784,0.05536656,133.34,133.33,7.4992]
[1742421408985,21.16155809,133.34,133.3,2.0847]
[1742421409379,21.16155809,133.34,133.31,7.4998]
[1742421410082,13.66255809,133.34,133.32,7.4995]
[1742421410288,0.05536656,133.34,133.32,7.4995]
[1742421419090,7.55406656,133.34,133.32,7.4995]
[1742421419491,0.05536656,133.34,133.32,7.4995]
[1742421420893,7.55406656,133.34,133.32,7.4995]
[1742421422296,0.05536656,133.34,133.33,7.4992]
[1742421423398,7.55416656,133.34,133.32,7.4995]
[1742421423998,0.05536656,133.34,133.32,7.4995]
[1742421424698,0.05536656,133.34,133.33,7.4992]
[1742421429895,0.05536656,133.34,133.33,34.6192]
[1742421430100,13.60719153,133.42,133.35,13.60719153]
[1742421430296,13.60719153,133.42,133.36,27.12]
[1742421430499,13.60719153,133.42,133.38,7.4961]
[1742421430699,13.60719153,133.42,133.36,27.12]
[1742421431101,13.60719153,133.42,133.39,7.4959]
[1742421431102,0.04743125,133.4,133.39,7.4959]
[1742421431399,0.04743125,133.4,133.39,21.10309153]
[1742421431599,0.04743125,133.4,133.39,48.22309153]
[1742421432105,0.04743125,133.4,133.39,27.12]
[1742421432303,0.04743125,133.4,133.38,7.54621274]
[1742421435398,0.04743125,133.4,133.39,7.4959]
[1742421440609,0.04743125,133.4,133.39,21.10309153]
[1742421441211,249.4738,133.46,133.45,7.4925]
[1742421441409,27.1,133.46,133.45,7.4925]
[1742421443920,13.65827606,133.47,133.46,7.4919]
[1742421444320,13.65827606,133.47,133.44,0.05102544]
[1742421444722,21.14967606,133.47,133.44,0.05102544]
[1742421445216,13.65827606,133.47,133.44,0.05102544]
[1742421445422,7.4922,133.46,133.44,0.05102544]
[1742421446112,7.4925,133.45,133.44,0.05102544]
[1742421447325,21.09969153,133.45,133.44,0.05102544]
[1742421458232,7.4922,133.46,133.44,7.54382544]
[1742421459127,21.14997606,133.47,133.45,7.4925]
[1742421460029,7.54278453,133.47,133.45,7.4925]
[1742421460430,0.05108453,133.47,133.46,7.4919]
[1742421460629,0.05108453,133.47,133.44,0.05102544]
[1742421461334,0.05108453,133.47,133.46,7.4919]
[1742421463633,247.4,133.51,133.46,27.1]
[1742421463834,34.5888,133.52,133.47,13.60719153]
[1742421464031,15.66189153,133.53,133.47,13.60719153]
[1742421464225,13.60719153,133.53,133.47,13.60719153]
[1742421464832,13.60719153,133.53,133.51,7.4888]
[1742421465233,13.66297755,133.53,133.51,7.4888]
[1742421467636,21.15107755,133.53,133.49,27.12884826]
[1742421468135,21.15107755,133.53,133.49,34.61874826]
[1742421470242,7.4886,133.52,133.49,34.61874826]
[1742421473341,7.4886,133.52,133.49,48.22593979]
[1742421477040,21.15137755,133.53,133.5,7.4894]
[1742421479445,7.54418602,133.53,133.51,7.4889]
[1742421480846,7.54418602,133.53,133.5,7.4894]
[1742421481642,0.05578602,133.53,133.51,13.60719153]
[1742421481842,0.05578602,133.53,133.52,27.08]
[1742421482141,7.4849,133.59,133.56,7.4858]
[1742421482547,13.60719153,133.6,133.55,40.68719153]
[1742421482939,7.4839,133.61,133.55,40.68719153]
[1742421483144,0.05489104,133.59,133.58,7.4851]
[1742421484659,0.05489104,133.59,133.57,21.09269153]
[1742421484952,0.05489104,133.59,133.58,27.06]
[1742421485542,0.05489104,133.59,133.58,34.5452]
[1742421489747,7.4827,133.63,133.6,7.4836]
[1742421489956,13.60719153,133.65,133.61,27.06]
[1742421490252,7.4821,133.64,133.61,27.06]
[1742421490451,13.60719153,133.65,133.61,34.543]
[1742421490754,21.08879153,133.65,133.61,34.543]
[1742421491049,0.05712903,133.64,133.62,0.05731153]
[1742421492950,0.05712903,133.64,133.62,7.54021153]
[1742421495354,7.53902903,133.64,133.62,7.54021153]
[1742421497857,21.08959153,133.63,133.62,0.05731153]
[1742421504070,7.4824,133.63,133.62,0.05731153]
[1742421514170,7.53922903,133.64,133.62,0.05731153]
[1742421514577,0.05712903,133.64,133.62,0.05731153]
[1742421515281,7.53892903,133.64,133.62,0.05731153]
[1742421516681,7.53892903,133.64,133.62,7.54011153]
[1742421518484,0.05712903,133.64,133.63,7.4824]
[1742421522284,5.61255885,133.7,133.62,40.70450306]
[1742421522482,318.68154891,133.71,133.64,13.60719153]
[1742421522784,7.4795,133.69,133.64,13.60719153]
[1742421523185,7.4795,133.69,133.66,7.4804]
[1742421523587,0.04938933,133.69,133.68,7.4796]
[1742421527384,0.04938933,133.69,133.67,7.4799]
[1742421527888,0.04938933,133.69,133.68,7.4796]
[1742421528788,0.04938933,133.69,133.67,7.4799]
[1742421530990,0.04938933,133.69,133.68,7.4796]
[1742421533584,0.04938933,133.69,133.68,34.4996]
[1742421541706,0.04938933,133.69,133.68,48.10679153]
[1742421550217,0.04938933,133.69,133.68,34.4996]
[1742421557715,0.04938933,133.69,133.68,27.02]
[1742421557915,13.65658086,133.69,133.66,0.05699098]
[1742421558115,27.0,133.68,133.66,0.05699098]
[1742421558316,13.60719153,133.67,133.66,0.05699098]
[1742421558622,13.60719153,133.67,133.59,55.29965934]
[1742421558821,13.60719153,133.62,133.59,41.69246781]
[1742421559121,21.09129153,133.6,133.59,41.69246781]
[1742421559417,13.60719153,133.6,133.57,143.20734752]
[1742421559616,7.4858,133.57,133.56,31.79740841]
[1742421560116,7.4863,133.56,133.55,31.31977602]
[1742421560418,48.09349153,133.56,133.55,7.602e-05]
[1742421560622,48.08719153,133.56,133.54,46.99973868]
[1742421560820,7.4869,133.55,133.54,46.99973868]
[1742421561220,7.48,133.55,133.53,124.63903267]
[1742421561420,13.60719153,133.54,133.53,94.67833267]
[1742421561612,21.09459153,133.54,133.53,94.73088699]
[1742421561816,28.57459153,133.54,133.53,84.76094624]
[1742421562220,28.57459153,133.54,133.53,0.05255432]
[1742421562421,28.57459153,133.54,133.47,7.4909]
[1742421562719,13.60719153,133.51,133.47,7.4909]
[1742421562925,27.0,133.5,133.44,27.0]
[1742421563518,0.0528974,133.49,133.46,0.05059725]
[1742421563723,40.79712861,133.48,133.46,0.05059725]
[1742421564527,40.79712861,133.48,133.47,7.491]
[1742421565125,0.0528974,133.49,133.47,7.491]
[1742421565525,0.0528974,133.49,133.48,7.4908]
[1742421565927,0.0528974,133.49,133.48,7.40880354]
[1742421566624,0.0528974,133.49,133.47,8.90558438]
[1742421567023,0.0528974,133.49,133.48,7.4908]
[1742421567225,10.19928215,133.51,133.47,35.92558438]
[1742421567427,10.19928215,133.51,133.5,13.60719153]
[1742421567723,40.79712861,133.51,133.5,28.72963467]
[1742421568122,40.79712861,133.51,133.5,36.21933467]
[1742421568522,40.79712861,133.51,133.5,13.60719153]
[1742421569123,0.05230037,133.52,133.51,7.4891]
[1742421570621,0.05230037,133.52,133.5,13.65645116]
[1742421571229,0.05230037,133.52,133.51,7.4891]
[1742421571628,30.59784646,133.55,133.5,15.72795116]
[1742421571829,81.59425723,133.56,133.53,13.60719153]
[1742421572131,58.94015723,133.56,133.55,13.60719153]
[1742421572427,36.11425723,133.56,133.55,21.09409153]
[1742421572926,0.04845305,133.57,133.56,7.4863]
[1742421573133,122.39138585,133.6,133.56,13.60719153]
[1742421573431,0.05574031,133.58,133.57,7.4858]
[1742421574933,0.05574031,133.58,133.57,34.5258]
[1742421575132,27.04,133.65,133.57,27.04]
[1742421575332,27.04,133.65,133.61,13.60719153]
[1742421575825,34.5215,133.65,133.61,21.09039153]
[1742421576031,48.12869153,133.65,133.61,21.09039153]
[1742421576225,0.04830386,133.64,133.62,0.05507177]
[1742421576828,7.53020386,133.64,133.62,0.05507177]
[1742421577133,13.60719153,133.63,133.62,0.05507177]
[1742421577333,13.60719153,133.63,133.57,40.62719153]